Cogmind - Beta 16 @@@ ROGUE MODE // 2026.01.02 @ 19:57:16 Player: polar Result: Self-destructed Performance ------------- Evolutions (8) 4000 Regions Visited (22) 4400 Robots Destroyed (282) 1410 Value Destroyed (14430) 14430 Prototype IDs (49) 980 Alien Tech Used (2) 400 Bonus (4177) 4177 TOTAL SCORE: 29797 Bonus ------- High Alert Combat Kills 1742 Follower Combat Kills 1574 Network Hubs Disabled 400 Registered with UFD 300 Met Optimus in HQ 500 Met Zhirov 300 Built Enhanced Grunts 300 A7 Reached Mainframe 300 Met R17 at Cetus 500 Scanned by Researcher 500 Friendly Fire -2239 Cogmind --------- Core Integrity 153/1450 Matter 245/300 Energy 71/100 System Corruption 49% Temperature Cool (0) Movement Core (50) Location -2/Protoforge Parts ------- > --- POWER (3) -------- (None) > --- PROPULSION (4) --- (None) > --- UTILITY (13) ----- (None) > --- WEAPON (3) ------- (None) > --- INVENTORY (5) ---- Experimental Energy Well (600) Thermal Barrier Potential Cannon Plasma Cutter Peak State ------------ > --- POWER ------------ Micro Antimatter Reactor Quantum Reactor Quantum Reactor > --- PROPULSION ------- Centrium Heavy Treads Advanced Heavy Siege Treads > --- UTILITY ---------- High-capacity Storage Unit Experimental Energy Well Enhanced Optical Array Long-range IFF Parser Experimental Terrain Scan Processor Experimental Targeting Computer Improved Transmission Jammer Jamming Amplifier Advanced Cloaking Device SHELL Armor Experimental Hardlight Generator > --- WEAPON ----------- Compact HERF Cannon Potential Cannon > --- INVENTORY -------- Reinforced Quantum Reactor Experimental Coolant Injector Experimental Energy Well Experimental Energy Well Advanced Terrain Scanner Advanced Weapon Cycler Thermal Barrier Long-range Tractor Beam Dimensional Node Initializer Transdimensional Reconstructor Transdimensional Reconstructor Transdimensional Reconstructor Terrabomb Enhanced Nova Cannon Fusion Bomb Launcher Plasma Cutter [Rating: 202] Favorites ----------- Power Quantum Reactor Engine Improved Ion Engine Power Core Light Fission Core Reactor Quantum Reactor Propulsion Centrium Heavy Treads Treads Centrium Heavy Treads Leg Aluminum Leg Wheel Compact Wheel Utility High-capacity Storage Unit Device Improved Transmission Jammer Storage High-capacity Storage Unit Processor Experimental Targeting Computer Hackware Hacking Suite Protection Centrium Medium Armor Plating Weapon Katana Energy Gun Heavy Beamcaster Energy Cannon Ion Cannon Ballistic Gun Advanced KE Penetrator Ballistic Cannon Enhanced Gauss Cannon Launcher Fusion Bomb Launcher Special Weapon Plasma Cutter Slashing Weapon Katana Piercing Weapon Spear Build | -11 -10 -10 -8 -8 -6 -6 -6 -6 -6 -5 -5 -5 -5 -4 -4 -4 -4 -3 -3 -2 -2 -2 ------- Run | Yrd Mat Sub Rec Scr Fac Ext Cet Arc Hub Fac Upp Upp Zhi Pro Fac Upp Upp Res Tes Res Qua Frg Slots Evolved 16 | . . . . . 8 . . . . 2 . . . . 2 . . 2 . 2 . . Power 2 | . . . . . 1 . . . . . . . . . . . . . . 1 . . Propulsion 2 | . . . . . 1 . . . . 1 . . . . . . . . . . . . Utility 11 | . . . . . 5 . . . . 1 . . . . 2 . . 2 . 1 . . Weapon 1 | . . . . . 1 . . . . . . . . . . . . . . . . . Parts Attached 201 | 7 7 3 14 4 19 16 10 . 9 25 2 . 6 6 17 1 . 11 15 16 9 4 Power 31 | 1 1 . 2 1 2 2 1 . 1 5 . . 1 2 2 . . 1 1 4 4 . Engine 9 | 1 1 . 2 1 2 2 . . . . . . . . . . . . . . . . Core 7 | . . . . . . . . . . 5 . . 1 1 . . . . . . . . Reactor 15 | . . . . . . . 1 . 1 . . . . 1 2 . . 1 1 4 4 . Propulsion 28 | 2 2 2 4 . 2 2 2 . 1 5 . . . . 2 . . . . 1 2 1 Treads 12 | . 2 . 2 . . . . . 1 5 . . . . . . . . . 1 1 . Leg 3 | 2 . . . . . . 1 . . . . . . . . . . . . . . . Wheel 13 | . . 2 2 . 2 2 1 . . . . . . . 2 . . . . . 1 1 Hover . | . . . . . . . . . . . . . . . . . . . . . . . Flight . | . . . . . . . . . . . . . . . . . . . . . . . Utility 93 | 2 2 1 3 2 9 9 2 . 7 9 1 . 4 3 9 1 . 8 7 8 3 3 Device 47 | 2 . . . . 7 3 . . 4 6 . . 2 . 7 1 . 3 3 6 1 2 Storage 9 | . 1 . 1 1 1 . . . 1 . . . 1 . . . . . 1 1 1 . Processor 14 | . 1 . . . 1 2 . . 1 3 . . . 1 . . . 4 . 1 . . Hackware 3 | . . . . . . . . . . . . . . . 2 . . . 1 . . . Protection 20 | . . 1 2 1 . 4 2 . 1 . 1 . 1 2 . . . 1 2 . 1 1 Artifact . | . . . . . . . . . . . . . . . . . . . . . . . Weapon 49 | 2 2 . 5 1 6 3 5 . . 6 1 . 1 1 4 . . 2 7 3 . . Energy Gun 6 | 1 . . 1 . . 2 1 . . . . . . . 1 . . . . . . . Energy Cannon 15 | . . . 1 . 2 . . . . 2 . . . . 2 . . 2 4 2 . . Ballistic Gun 10 | 1 . . 1 . 1 1 3 . . 1 . . . . 1 . . . 1 . . . Ballistic Cannon 7 | . 1 . . 1 1 . . . . 2 . . 1 1 . . . . . . . . Launcher 4 | . 1 . . . . . . . . . . . . . . . . . 2 1 . . Special Weapon 3 | . . . 1 . . . 1 . . . 1 . . . . . . . . . . . Impact Weapon . | . . . . . . . . . . . . . . . . . . . . . . . Slashing Weapon 3 | . . . 1 . 1 . . . . 1 . . . . . . . . . . . . Piercing Weapon 1 | . . . . . 1 . . . . . . . . . . . . . . . . . Special Melee Weapon . | . . . . . . . . . . . . . . . . . . . . . . . Unidentified Prototypes 22 | . . . . . 1 . 4 . 2 1 1 . 3 . . . . . 7 1 2 . Corrupted Parts 1 | . . . . . . . . . . . . . . . . . . . . . 1 . System Corruption 9 | . . . . . . . . . . . . . . . . . . . . . 9 . Parts Lost 61 | . . 8 . . 5 8 3 . 3 8 1 . . 4 3 . . . 1 1 4 12 Power 11 | . . 1 . . 1 1 1 . . 1 . . . 2 . . . . . . 1 3 Propulsion 11 | . . 3 . . 1 2 . . . 1 1 . . . . . . . . . . 3 Utility 25 | . . 1 . . 1 4 . . 2 4 . . . 1 2 . . . 1 1 2 6 Weapon 14 | . . 3 . . 2 1 2 . 1 2 . . . 1 1 . . . . . 1 . Highest Loss Streak 9 | . . 8 . . 5 3 2 . 1 4 1 . . 2 2 . . . 1 1 1 9 To Critical Strikes 1 | . . . . . . . 1 . . . . . . . . . . . . . . . Average Backups 14 | 2 6 6 6 8 16 18 18 18 17 19 18 18 18 17 17 16 17 17 17 17 17 17 Power . | . . . . . . . 1 2 1 1 1 1 . 1 1 1 1 1 1 1 . . Propulsion 1 | 2 2 1 3 1 4 4 2 2 2 1 1 2 1 2 2 2 2 2 1 . . 3 Utility 7 | . 1 1 2 4 9 9 11 11 11 11 11 12 11 11 10 9 10 9 9 9 7 6 Weapon 2 | . 1 1 . 1 . 2 2 2 1 2 3 2 3 1 1 2 2 2 3 3 2 2 Tool/Special . | . . . . . . . . . . . . . . . . . . . . . . . Unused Backups 136 | . 2 1 13 91 7 2 2 . . 2 . . 1 . 3 . . 3 . 3 1 5 Power 11 | . . . . 6 1 . . . . 1 . . . . . . . 1 . 2 . . Propulsion 16 | . 1 . 2 10 . . . . . . . . . . 1 . . . . . . 2 Utility 64 | . . . 6 43 5 2 1 . . 1 . . . . 1 . . 2 . 1 1 1 Weapon 36 | . 1 1 5 25 1 . 1 . . . . . 1 . 1 . . . . . . . Tool/Special 9 | . . . . 7 . . . . . . . . . . . . . . . . . 2 Average Slot Usage (%) 88 | . 99 85 98 96 89 90 85 86 85 87 82 83 76 88 85 83 84 86 82 81 77 71 Engine 6 | . 14 11 13 14 11 10 5 6 1 . . . . . . . . . . . . . Core 1 | . . . . . . . . . . 9 11 11 11 8 . . . . . . . . Reactor 3 | . . . . . . . 5 6 11 1 . . . 1 9 10 10 9 9 12 12 12 Treads 4 | . 24 22 1 . . . . . . 11 17 17 17 17 1 . . . 2 8 7 6 Wheel 13 | . . 2 25 28 19 19 14 13 12 . . . . . 9 10 10 9 6 . 1 2 Device 10 | . 6 10 . . 22 15 13 13 22 13 10 11 11 11 14 14 15 14 10 18 19 15 Storage 8 | . 8 11 13 13 6 6 6 6 6 5 5 5 7 5 5 5 5 4 4 4 5 5 Processor 9 | . 13 . . . 5 8 6 6 5 16 17 17 17 17 15 15 15 21 23 18 17 15 Protection 8 | . . 2 13 12 3 8 12 13 4 8 5 5 4 6 7 5 5 6 5 4 4 5 Energy Gun 1 | . 2 . 8 . . 4 9 6 6 1 . . . . . . . . . . . . Energy Cannon 5 | . . . 2 10 3 4 . . . 3 5 5 . 5 5 5 5 10 10 8 6 5 Ballistic Gun 2 | . 14 10 . . 3 5 8 13 6 7 5 5 . . 1 5 5 . 2 3 1 . Ballistic Cannon 2 | . 11 10 . 2 6 1 . . . 1 . 1 . 10 8 5 5 2 . . . . Special Weapon 1 | . . . 10 . . . . . . . . . 2 . . . . . . . . . Slashing Weapon 4 | . . . 4 13 4 2 . . 5 1 . . . . . . . . . . . . Peak Build Rating 202 | 7 10 10 15 26 62 67 95 95 104 123 98 103 109 112 125 112 112 130 173 193 202 191 Average Rating 78 | 4 9 8 12 16 56 61 84 95 93 115 86 99 89 106 112 111 112 126 141 184 189 169 On Entrance 84 | . 7 10 5 15 26 59 67 95 95 82 79 98 103 106 112 112 112 112 125 170 192 171 Avg Prop Armor Cover (%) 4 | . . . . . . . 3 . 2 . . . . . . . . . . . 3 7 Naked Turns 24 | . . 1 . . . . . . . . . . . . . . . . . . . 23 Heaviest Build 193 | 9 17 18 26 67 88 100 109 107 117 106 86 95 98 111 127 118 118 126 129 157 193 175 Greatest Support 160 | 20 40 40 40 26 32 32 32 28 80 160 130 130 130 130 130 56 56 56 160 160 160 160 Greatest Overweight (x) 13 | . . 1 2 2 3 6 13 3 5 1 1 . . . 4 2 2 2 4 . 12 8 Average Overweight (x) 1 | . . . . 1 2 2 3 3 2 . . . . . 1 2 2 1 1 . 1 1 Largest Inventory Capacity 20 | 5 8 8 8 20 20 20 20 20 20 20 20 20 20 20 20 20 20 20 20 20 20 20 Average Capacity 17 | 5 6 7 7 16 20 20 20 20 20 20 20 20 20 20 20 20 20 20 20 20 20 19 Most Carried 20 | 5 7 8 8 20 20 20 20 20 20 20 20 20 20 20 20 20 19 20 20 20 20 20 Average Carried 15 | 2 6 6 6 9 19 19 19 20 19 19 19 19 19 19 19 18 19 19 19 19 18 18 Final Capacity 20 | 5 8 5 8 20 20 20 20 20 20 20 20 20 20 20 20 20 20 20 20 20 20 5 Final Carried 20 | 5 7 3 6 20 20 20 20 20 20 20 20 19 20 18 19 19 19 20 20 20 20 5 Scrap Suit Usage (%) 13 | . . . . . 55 97 59 100 88 . . . . . . . . . . . . . Parts Cannibalized 35 | . . . . . 2 29 1 . 3 . . . . . . . . . . . . . Class Distribution -------------------- 31% | Commander-Mutant 18% | Scavenger-Tank 9% | Mutant 8% | Scavenger-Mutant 5% | Skirmisher 4% | Gunner 3% | Scavenger-Scrapper Dominant Class ---------------- Mutant | -10/Materials Mutant | -10/Subcaves Commander-Mutant | -8/Recycling Commander-Mutant | -8/Scraptown Commander-Assassin | -6/Factory Mutant | -6/Extension Commander-Scrapper | -6/Cetus Scavenger-Scrapper | -6/Archives Scavenger-Scrapper | -6/Hub_04(d) Scavenger-Tank | -5/Factory Scavenger-Mutant | -5/Upper Caves Scavenger-Mutant | -5/Upper Caves Mutant | -5/Zhirov Scavenger-Tank | -4/Proximity Caves Gunner | -4/Factory Gunner | -4/Upper Caves Gunner | -4/Upper Caves Skirmisher | -3/Research Skirmisher | -3/Testing Scavenger-Tank | -2/Research Infiltrator-Tank | -2/Quarantine Infiltrator-Mutant | -2/Protoforge Resources | -11 -10 -10 -8 -8 -6 -6 -6 -6 -6 -5 -5 -5 -5 -4 -4 -4 -4 -3 -3 -2 -2 -2 ----------- Run | Yrd Mat Sub Rec Scr Fac Ext Cet Arc Hub Fac Upp Upp Zhi Pro Fac Upp Upp Res Tes Res Qua Frg Matter Collected 9238 | 291 247 127 349 598 687 881 349 . 349 1059 193 68 129 514 875 20 . 232 275 1112 430 453 Remotely 1435 | . . . . . . . . . . 325 . . . 181 162 . . 92 . 378 135 162 Salvage Created 14777 | 118 328 146 191 . 271 1964 394 . 704 1720 43 99 508 386 856 . . 272 764 3433 1264 1316 Parts 699 | 8 21 16 9 . 11 97 22 . 45 93 6 9 6 20 33 . . 7 33 146 59 58 Haulers Intercepted 1 | . 1 . . . . . . . . . . . . . . . . . . . . . Recyclers Shooed 9 | . . . 1 . . 1 . . . . . . . . 4 . . . . 3 . . Parts Field Recycled . | . . . . . . . . . . . . . . . . . . . . . . . Retrieved Matter . | . . . . . . . . . . . . . . . . . . . . . . . Parts Self-Destructed 49 | . . 12 . . . . . . . . 10 9 2 16 . . . . . . . . Prevented 5 | . . . . . . . . . . . 3 . . 2 . . . . . . . . Parts Restored . | . . . . . . . . . . . . . . . . . . . . . . . Kills | -11 -10 -10 -8 -8 -6 -6 -6 -6 -6 -5 -5 -5 -5 -4 -4 -4 -4 -3 -3 -2 -2 -2 ------- Run | Yrd Mat Sub Rec Scr Fac Ext Cet Arc Hub Fac Upp Upp Zhi Pro Fac Upp Upp Res Tes Res Qua Frg Combat Hostiles Destroyed 214 | 1 9 6 1 . 7 26 4 . 11 30 2 2 . 14 16 . . 4 6 41 17 17 Melee 1 | . . . . . . . . . . . . . . . . . . . . 1 . . Guns 60 | 1 1 1 1 . 2 15 4 . 11 13 2 . . . 2 . . . . 7 . . Cannons 95 | . 5 2 . . 5 11 . . . 13 . 2 . 13 5 . . 2 3 18 9 7 AOE 28 | . 3 3 . . . . . . . 3 . . . . 7 . . . 2 8 2 . Classes Destroyed 22 | 2 4 2 . . 4 4 . . 1 . . . . 2 . . . . 1 1 1 . Worker 8 | . . . . . . 2 . . . 2 . . . . . . . . . 1 1 2 Builder 11 | . . . . . . . . . 1 2 . . . . . . . . . 4 3 1 Tunneler 4 | 3 . . . . . 1 . . . . . . . . . . . . . . . . Hauler 1 | . 1 . . . . . . . . . . . . . . . . . . . . . Recycler 14 | . . . . . 1 3 . . . 2 . . . . 2 . . . 2 4 . . Minesweeper 1 | . . . . . . . . . . . . . . 1 . . . . . . . . Mechanic 3 | . 1 . . . . . . . . 1 . . . . . . . . . . 1 . Operator 2 | . . . . . 1 . . . 1 . . . . . . . . . . . . . Drone 4 | . . . . . . . . . . . . . . 2 1 . . . . . . 1 Watcher 20 | . 2 . . . . 2 . . 2 3 . . . . 1 . . . 2 6 1 1 Swarmer 54 | . 3 2 . . 3 7 . . 1 8 2 . . 6 5 . . . . 14 . 3 Saboteur 1 | . . . . . . . . . . . . . . . . . . . . 1 . . Grunt 52 | 1 6 . . . 1 5 . . 6 7 . . . 2 2 . . 2 3 12 2 3 Brawler 5 | . . . . . . . . . . 1 . . . . . . . . . 4 . . Duelist 3 | . . . . . . 2 . . . . . . . . . . . . . 1 . . Researcher 2 | . . . . . . . . . . . . . . . . . . . 1 . 1 . Sentry 22 | . . 1 1 . 1 7 . . 1 4 . . . . 4 . . . . 1 . 2 Hunter 19 | . . . . . 1 3 . . . 1 . 2 . 4 . . . 2 . . 6 . Programmer 36 | . . . . . 1 . . . 3 9 . . . . 4 . . . 3 8 6 2 Q-Series 3 | . . . . . . . . . . . . . . . . . . . . . 3 . Behemoth 1 | . . . . . . 1 . . . . . . . . . . . . . . . . Cetus Guard 4 | . . . . . . . 4 . . . . . . . . . . . . . . . Enhanced Grunt 1 | . . . . . . . 1 . . . . . . . . . . . . . . . Hotshot 6 | . . . . . . . . . . . . . . . . . . . . . . 6 Subdweller 3 | . . 3 . . . . . . . . . . . . . . . . . . . . Savage 2 | . . . . . . 2 . . . . . . . . . . . . . . . . Best Kill Streak 9 | 4 5 3 1 . 3 5 2 . 9 6 1 2 . 4 5 . . 2 4 8 6 4 Combat Bots Only 8 | 1 4 3 1 . 3 5 2 . 8 5 1 2 . 4 5 . . 2 3 7 4 3 Max Kills in Single Turn 5 | 1 4 2 1 . 1 2 1 . 2 4 1 1 . 2 5 . . 1 1 5 5 2 Gunslinging 1 | . . . . . . 1 . . . . . . . . . . . . . . . . Exploded 5 | . 3 2 . . . . . . . 3 . . . . 5 . . . 1 5 1 . Melee 1 | . . . . . . . . . . . . . . . . . . . . 1 . . Uniques/NPCs Destroyed 1 | . . . . . . . 1 . . . . . . . . . . . . . . . A7 (-6/Cetus) Combat | -11 -10 -10 -8 -8 -6 -6 -6 -6 -6 -5 -5 -5 -5 -4 -4 -4 -4 -3 -3 -2 -2 -2 -------- Run | Yrd Mat Sub Rec Scr Fac Ext Cet Arc Hub Fac Upp Upp Zhi Pro Fac Upp Upp Res Tes Res Qua Frg Hostile Shots Fired 1631 | 4 26 67 9 . 75 192 56 . 89 192 9 9 . 113 70 . . 54 52 248 191 175 Missed 445 | 1 6 21 1 . 21 50 20 . 28 36 1 1 . 49 20 . . 19 15 59 57 40 Hits 1186 | 3 20 46 8 . 54 142 36 . 61 156 8 8 . 64 50 . . 35 37 189 134 135 Melee 18 | . . . . . . 10 . . . 5 . . . . . . . . . 3 . . Projectile 1168 | 3 20 46 8 . 54 132 36 . 61 151 8 8 . 64 50 . . 35 37 186 134 135 Critical Strikes 55 | . 1 1 . . 1 6 5 . 2 9 . . . . 5 . . 2 4 3 5 11 Part Disruptions 2 | . . . . . . . . . . . . . . . . . . . 1 . . 1 Damage Taken 22052 | 30 261 905 123 . 784 2042 834 . 1092 3618 132 124 . 952 1157 . . 513 851 3034 2535 3065 Core 1780 | . 25 193 . . 83 72 61 . 68 125 . . . 64 38 . . 9 89 109 184 660 Absorbed by Shields 3302 | . . . . . 31 131 178 . . . . . . . 132 . . 92 . 1120 858 760 Reduced by Siege Mode 385 | . . . . . . . . . . 127 . . . 6 . . . . . 90 97 65 Redirected to Shielding 21 | . . . . . . . . . . . . . . . . . . . . . . 21 Ignored by Resistances 1580 | . . . . . . . . . . . . . . . . . . . . 493 215 872 Regen/Repaired (Parts) 6417 | . 117 . . . 413 264 10 . 13 492 . . . . 1568 . . . 99 1081 1414 946 Core Remaining (%) 74 | 100 . . . 12 . . . . 66 . . . . 81 . . 96 . 92 . . . Volleys Fired 939 | 7 24 14 11 . 34 93 30 2 29 114 9 24 49 45 65 17 . 27 35 139 70 101 Largest 3 | 2 2 2 1 . 3 3 3 3 3 3 2 3 1 3 3 1 . 2 3 3 3 2 Hottest 320 | 70 70 50 60 . 129 206 197 151 151 165 123 170 20 192 187 105 . 162 266 241 320 214 Shots Fired 1548 | 14 47 25 10 . 73 195 78 6 56 224 14 30 49 109 100 17 . 32 57 228 82 102 Gun 565 | 14 29 11 10 . 13 122 76 6 56 127 4 3 . . 9 . . 1 12 69 3 . Cannon 923 | . 17 11 . . 60 73 . . . 97 10 27 . 109 91 17 . 31 43 156 79 102 Launcher 9 | . 1 3 . . . . . . . . . . . . . . . . 2 3 . . Special 51 | . . . . . . . 2 . . . . . 49 . . . . . . . . . Kinetic 665 | 7 40 22 . . 61 100 43 4 43 131 4 6 . 63 55 . . 2 12 69 3 . Thermal 674 | 7 6 . 10 . 12 95 33 2 13 93 10 24 49 46 29 17 . 16 37 70 58 47 Explosive 9 | . 1 3 . . . . . . . . . . . . . . . . 2 3 . . Electromagnetic 198 | . . . . . . . . . . . . . . . 16 . . 14 6 86 21 55 Robot Hit Streak 34 | 4 8 7 10 . 10 18 9 7 12 22 2 4 15 17 22 . . 8 6 33 34 15 Robot Miss Streak 8 | 1 4 4 1 . 5 6 3 . 2 8 4 1 1 4 2 . . 1 2 2 2 2 Penetration Max 3 | . . . . . . 3 1 . 1 1 . . . . . . . . . 3 . . Secondary Targets 3 | . . . . . . 1 1 . 1 . . . . . . . . . . . . . Max Gunslinging Chain 1 | . . . . . . 1 1 . 1 . . . . . . . . . . . . . Shots Hit Robots 896 | 9 29 11 9 . 34 115 54 6 37 142 4 5 44 51 50 . . 12 26 165 43 50 Core Hits 476 | 5 22 12 4 . 12 73 21 2 20 72 2 3 20 21 25 . . 3 16 100 25 18 Critical Kills 35 | . . . . . . 8 2 . 5 7 . . . 1 2 . . . 1 7 2 . Critical Parts Destroyed 48 | . . . 1 . . 10 3 1 3 7 . . . . 1 . . . 2 19 1 . Critical Strikes 114 | 1 1 . 1 . . 21 10 1 9 19 . . 1 2 9 . . . 3 30 5 1 Burn 8 | 1 . . . . . 2 2 . 1 2 . . . . . . . . . . . . Meltdown 5 | . . . . . . . . . . 1 . . . 1 . . . . 1 . 2 . Destroy 88 | . . . 1 . . 19 8 1 8 15 . . . . 3 . . . 2 29 2 . Blast 8 | . 1 . . . . . . . . 1 . . . 1 5 . . . . . . . Corrupt 4 | . . . . . . . . . . . . . . . 1 . . . . 1 1 1 Sever 1 | . . . . . . . . . . . . . 1 . . . . . . . . . Melee Attacks 42 | . . . 1 . 14 8 . . 16 3 . . . . . . . . . . . . Impact . | . . . . . . . . . . . . . . . . . . . . . . . Slashing 40 | . . . 1 . 12 8 . . 16 3 . . . . . . . . . . . . Piercing 2 | . . . . . 2 . . . . . . . . . . . . . . . . . Sneak Attacks 2 | . . . . . . . . . . 2 . . . . . . . . . . . . Combat Hostiles . | . . . . . . . . . . . . . . . . . . . . . . . Follow-up Attacks . | . . . . . . . . . . . . . . . . . . . . . . . Damage Inflicted 35600 | 111 492 747 178 . 986 2738 1313 143 1555 5710 120 142 423 1629 2762 . . 446 1445 6670 5029 2961 Guns 7908 | 111 213 49 178 . 152 1181 1313 143 1186 2501 56 . . . 34 . . . 61 703 27 . Cannons 19330 | . 160 82 . . 834 1538 . . . 1779 64 142 . 1629 1675 . . 446 960 4148 3338 2535 Explosions 7653 | . 119 616 . . . . . . 324 1274 . . . . 1053 . . . 424 1753 1664 426 Melee 201 | . . . . . . . . . 45 156 . . . . . . . . . . . . Ramming 85 | . . . . . . 19 . . . . . . . . . . . . . 66 . . Kinetic 9667 | 48 322 131 . . 829 995 698 98 996 2747 56 44 . 923 989 . . . 61 703 27 . Thermal 15947 | 63 51 . 178 . 157 1724 615 45 190 2807 64 98 423 706 787 . . 76 728 1914 4230 1091 Explosive 3102 | . 119 616 . . . . . . . . . . . . 527 . . . 424 1416 . . Electromagnetic 6598 | . . . . . . . . . 324 . . . . . 459 . . 370 232 2571 772 1870 Impact . | . . . . . . . . . . . . . . . . . . . . . . . Slashing 201 | . . . . . . . . . 45 156 . . . . . . . . . . . . Piercing . | . . . . . . . . . . . . . . . . . . . . . . . Highest Corruption 49 | . . . . . . . . . 1 5 5 5 5 5 . . . . . 2 15 49 Average Corruption 7 | . . . . . . . . . 1 2 5 5 5 5 . . . . . 1 10 19 Corruption Purged 5 | . . . . . . . . . . . . . . . . . . . . 3 2 . Corruption Blocked 20 | . . . . . . . . . . . . . . . . . . . 13 7 . . Effects 188 | . . . . . . . . . 2 35 15 11 18 19 . . . . . 1 26 61 Message Errors 42 | . . . . . . . . . 1 8 2 4 2 5 . . . . . 1 6 13 Matter Fused 37 | . . . . . . . . . . 5 3 3 9 2 . . . . . . 4 11 Heat Flow Errors 22 | . . . . . . . . . . 4 3 . 1 4 . . . . . . 4 6 Energy Discharges 26 | . . . . . . . . . . 5 3 1 1 2 . . . . . . 5 9 Parts Rejected 5 | . . . . . . . . . . . . . . . . . . . . . 3 2 Parts Fused 3 | . . . . . . . . . . . . . . 2 . . . . . . 1 . Data Loss (minor) 30 | . . . . . . . . . . 6 3 1 3 3 . . . . . . 2 12 Data Loss (major) 11 | . . . . . . . . . 1 1 . 1 2 . . . . . . . 1 5 Misfires 6 | . . . . . . . . . . 3 1 . . 1 . . . . . . . 1 Alerts 3 | . . . . . . . . . . 2 . 1 . . . . . . . . . . Weapon Failures 3 | . . . . . . . . . . 1 . . . . . . . . . . . 2 Overload Shots . | . . . . . . . . . . . . . . . . . . . . . . . Overflow Damage 2359 | . . 14 . . 25 36 . . 55 320 . . 6 82 141 . . . 29 138 1041 472 Projectiles 1529 | . . . . . 25 36 . . . 89 . . 6 82 61 . . . 29 74 803 324 Explosions 790 | . . 14 . . . . . . 55 191 . . . . 80 . . . . 64 238 148 Melee 40 | . . . . . . . . . . 40 . . . . . . . . . . . . Knockbacks 41 | . 2 . . . 6 5 . . . 9 . . . 13 5 . . . . 1 . . Impact 1 | . . . . . . . . . . . . . . . . . . . . 1 . . Kinetic 37 | . 2 . . . 6 5 . . . 7 . . . 12 5 . . . . . . . Secondary 3 | . . . . . . . . . . 2 . . . 1 . . . . . . . . Self-Inflicted Damage 720 | . . 96 . . . 9 . . 160 154 . . . . 235 . . . . . 21 45 Shots 14 | . . 3 . . . . . . 2 3 . . . . 4 . . . . . 1 1 Rammed 9 | . . . . . . 1 . . . . . . . . . . . . . 8 . . Targets Rammed 10 | . . . . . . 1 . . . . . . . . . . . . . 9 . . Kicked . | . . . . . . . . . . . . . . . . . . . . . . . Crushed 1 | . . . . . . . . . . . . . . . . . . . . 1 . . Highest Temperature 474 | 45 30 . 167 . 177 474 434 . 241 341 96 45 86 138 47 168 . 64 404 352 220 179 Average Temperature 87 | 16 9 . 63 . 59 111 137 . 69 82 40 22 54 43 20 81 . 26 71 110 63 46 Received Heat Transfer 2174 | 18 162 132 36 . 64 345 138 . 267 315 . . . 63 134 . . 12 36 162 87 203 Effects 13 | . . . . . . 5 1 . . 3 . . . . . . . . 1 3 . . Shutdowns 5 | . . . . . . 2 1 . . . . . . . . . . . 1 1 . . Energy Bleed 1 | . . . . . . . . . . . . . . . . . . . . 1 . . Interference 7 | . . . . . . 3 . . . 3 . . . . . . . . . 1 . . Siege Activations 26 | . . . . . . . . . . 9 . . . 1 . . . . . 6 4 6 Total Turns 495 | . . . . . . . . . . 219 . . . 14 . . . . . 108 82 72 Longest Duration 44 | . . . . . . . . . . 44 . . . 14 . . . . . 37 26 16 Martial Activations . | . . . . . . . . . . . . . . . . . . . . . . . Shielding Activations . | . . . . . . . . . . . . . . . . . . . . . . . Robots Disrupted 2 | . . . . . . . . . . . . . . . . . . . . 1 . 1 Combat Hostiles 2 | . . . . . . . . . . . . . . . . . . . . 1 . 1 Robots Corrupted 26 | . . . . . . . . . . . . . . . 2 . . 2 . 8 4 10 Combat Hostiles 25 | . . . . . . . . . . . . . . . 2 . . 2 . 7 4 10 Parts Fried 46 | . . . . . . 1 . . . . . . . 1 3 . . 4 . 16 3 18 Impact Corruptions . | . . . . . . . . . . . . . . . . . . . . . . . Robots Melted 5 | . . . . . . . . . . 1 . . . 1 . . . . 1 . 2 . Combat Hostiles 5 | . . . . . . . . . . 1 . . . 1 . . . . 1 . 2 . Parts Melted 32 | . . . 1 . . 9 . . . 4 . . . 2 3 . . . 4 1 8 . Heat Transferred 17277 | 259 148 . 225 . 185 3208 978 74 333 2898 100 150 1432 1100 635 . . 74 592 1506 2793 587 Parts Sabotaged 1 | . . . . . . . . . . . . . . . . . . . . 1 . . Parts Stolen . | . . . . . . . . . . . . . . . . . . . . . . . Parts Stripped . | . . . . . . . . . . . . . . . . . . . . . . . Power Chain Reactions 3 | . . . . . . . . . . . . . . . 1 . . . . 2 . . Alert | -11 -10 -10 -8 -8 -6 -6 -6 -6 -6 -5 -5 -5 -5 -4 -4 -4 -4 -3 -3 -2 -2 -2 ------- Run | Yrd Mat Sub Rec Scr Fac Ext Cet Arc Hub Fac Upp Upp Zhi Pro Fac Upp Upp Res Tes Res Qua Frg Maximum Alert Level 3 | . . . . . 1 3 2 2 3 3 . . . . 1 . . . . 3 3 2 Low Security (%) 59 | 100 100 . 100 . 81 60 . 43 86 19 . . . . 82 . . 100 100 25 . . Level 1 13 | . . . . . 18 16 14 17 1 33 . . . . 17 . . . . 6 15 26 Level 2 19 | . . . . . . 22 85 39 7 16 . . . . . . . . . 35 71 73 Level 3 7 | . . . . . . . . . 4 30 . . . . . . . . . 32 12 . Level 4 . | . . . . . . . . . . . . . . . . . . . . . . . Level 5 . | . . . . . . . . . . . . . . . . . . . . . . . High Security . | . . . . . . . . . . . . . . . . . . . . . . . Max Security . | . . . . . . . . . . . . . . . . . . . . . . . Peak Influence 1030 | 20 102 . 61 . 367 736 566 585 719 823 . . . . 349 . . 49 164 1030 774 614 Initial 577 | . 3 . . . . 2 334 188 193 345 . . . . 150 . . . . 52 577 420 Average 234 | 4 26 . 11 . 99 213 460 319 143 440 . . . . 164 . . 4 57 524 525 462 Influence Increases 10946 | 35 270 75 282 . 835 1279 456 515 972 1206 40 50 15 340 977 . . 167 336 1541 906 649 Destroy 0b10 Robot/C 4940 | 20 180 60 120 . 200 760 200 240 220 600 40 40 . 240 300 . . 80 140 820 360 320 Destroy 0b10 Robot/NC 440 | 15 20 . 10 . 50 55 10 10 20 50 . . 15 15 20 . . . 20 75 30 25 Destroy Leader 806 | . 46 . . . 52 86 10 . 54 136 . 10 . 40 72 . . 10 24 112 72 82 Allied During Kill 767 | . . . 57 . 44 228 199 239 . . . . . . . . . . . . . . Successful Hack 423 | . 4 . 15 . 28 40 . . 18 80 . . . . 79 . . 21 3 111 24 . Select Force Hacks 30 | . . . 30 . . . . . . . . . . . . . . . . . . . Disable Machine 1140 | . . . 30 . 315 . 15 15 330 105 . . . . 135 . . 15 75 15 60 30 Destroy Structure 1635 | . 5 . 20 . 101 20 22 11 240 220 . . . . 176 . . 26 74 288 300 132 Advance Influence 150 | . . . . . . . . . . . . . . . 150 . . . . . . . Partial Spotted 45 | . . . . . 15 . . . . . . . . . . . . . . . . 30 Lose Combat Pursuer 570 | . 15 15 . . 30 90 . . 90 15 . . . 45 45 . . 15 . 120 60 30 Influence Decreases 10483 | 30 271 79 282 . 829 687 584 432 818 1137 600 266 15 340 637 340 . 167 242 608 1186 933 Entered New Map 2552 | . 2 3 . . . 4 264 282 360 362 288 42 . . . 126 . . . 42 450 327 Time Decay 6662 | 30 269 51 282 . 555 393 270 30 428 695 302 224 15 300 607 214 . 167 242 556 546 486 Lost Part 525 | . . 25 . . 50 60 30 . 30 80 10 . . 40 30 . . . . 10 40 120 Lost Ally 444 | . . . . . 224 80 20 120 . . . . . . . . . . . . . . Purge Threat 300 | . . . . . . 150 . . . . . . . . . . . . . . 150 . Squads Dispatched 75 | . 1 . . . 6 3 1 . 5 16 . . . . 8 . . 8 2 10 9 6 Investigation 20 | . . . . . 1 . 1 . 1 4 . . . . 4 . . 4 . 1 1 3 Extermination 28 | . . . . . 3 . . . 3 6 . . . . 4 . . 1 2 3 4 2 Reinforcement 16 | . 1 . . . 2 3 . . . 3 . . . . . . . 3 . 2 2 . Assault 11 | . . . . . . . . . 1 3 . . . . . . . . . 4 2 1 Garrison . | . . . . . . . . . . . . . . . . . . . . . . . Intercept . | . . . . . . . . . . . . . . . . . . . . . . . Searches Triggered . | . . . . . . . . . . . . . . . . . . . . . . . Construction Impeded 3 | . . . . . 1 1 . . . . . . . . . . . . . 1 . . Haulers Reinforced 2 | . . . . . . . . . . . . . . . . . . 2 . . . . Active Scanning Responses . | . . . . . . . . . . . . . . . . . . . . . . . Cargo Convoy Interrupts 1 | . . . . . . . . . . 1 . . . . . . . . . . . . Stealth | -11 -10 -10 -8 -8 -6 -6 -6 -6 -6 -5 -5 -5 -5 -4 -4 -4 -4 -3 -3 -2 -2 -2 --------- Run | Yrd Mat Sub Rec Scr Fac Ext Cet Arc Hub Fac Upp Upp Zhi Pro Fac Upp Upp Res Tes Res Qua Frg Distress Signals 28 | . 1 . . . 4 1 2 . 3 3 . . . . 3 . . 9 . 1 . 1 Communications Jammed 96 | . . . . . . . . . 3 1 . . . . 2 . . . 1 23 38 28 Distress Signals 93 | . . . . . . . . . 3 1 . . . . 1 . . . . 22 38 28 Times Spotted 404 | 1 16 16 5 . 22 47 13 1 26 49 2 2 . 17 25 . . 9 12 64 43 34 Peak Tracking Total 8 | 1 4 8 2 . 5 6 5 1 5 8 1 2 . 5 6 . . 4 3 6 7 5 Tactical Retreats 27 | . 1 2 . . 1 5 . . 3 1 . . . 1 2 . . 1 . 6 3 1 Traps | -11 -10 -10 -8 -8 -6 -6 -6 -6 -6 -5 -5 -5 -5 -4 -4 -4 -4 -3 -3 -2 -2 -2 ------- Run | Yrd Mat Sub Rec Scr Fac Ext Cet Arc Hub Fac Upp Upp Zhi Pro Fac Upp Upp Res Tes Res Qua Frg Traps Triggered 13 | . . . . . . . . . . . . . . . 3 . . 2 4 2 2 . Indirectly . | . . . . . . . . . . . . . . . . . . . . . . . Trap Hack Attempts . | . . . . . . . . . . . . . . . . . . . . . . . Triggered . | . . . . . . . . . . . . . . . . . . . . . . . Disarmed 6 | . 6 . . . . . . . . . . . . . . . . . . . . . Reprogrammed . | . . . . . . . . . . . . . . . . . . . . . . . Reused 2 | . . . . . . . . . . . . . . 2 . . . . . . . . Traps Extracted . | . . . . . . . . . . . . . . . . . . . . . . . Installed 3 | . . . . . . . . . . . . . . 3 . . . . . . . . Triggered 2 | . . . . . . . . . . . . . . 2 . . . . . . . . Most Traps Carried 2 | . . . . 2 . . . . . . . . . . . . . . . . . . Machines | -11 -10 -10 -8 -8 -6 -6 -6 -6 -6 -5 -5 -5 -5 -4 -4 -4 -4 -3 -3 -2 -2 -2 ---------- Run | Yrd Mat Sub Rec Scr Fac Ext Cet Arc Hub Fac Upp Upp Zhi Pro Fac Upp Upp Res Tes Res Qua Frg Machines Disabled 80 | . . 1 2 . 21 2 1 1 22 7 . . . . 9 . . 1 6 1 4 2 Max in Single Turn 10 | . . 1 1 . 2 1 1 1 10 4 . . . . 4 . . 1 1 1 1 1 Garrison Access 5 | . . . . . 1 . . . . 1 . . . . 2 . . . . 1 . . Network Hub 2 | . . . . . . . . . 2 . . . . . . . . . . . . . Machines Repaired . | . . . . . . . . . . . . . . . . . . . . . . . Machines Dismantled 5 | . . . 2 . 2 . 1 . . . . . . . . . . . . . . . Machines Sabotaged . | . . . . . . . . . . . . . . . . . . . . . . . Overloaded Fab Kills . | . . . . . . . . . . . . . . . . . . . . . . . Hacking | -11 -10 -10 -8 -8 -6 -6 -6 -6 -6 -5 -5 -5 -5 -4 -4 -4 -4 -3 -3 -2 -2 -2 --------- Run | Yrd Mat Sub Rec Scr Fac Ext Cet Arc Hub Fac Upp Upp Zhi Pro Fac Upp Upp Res Tes Res Qua Frg Machines Accessed 141 | . 5 . 13 9 16 14 3 . 8 16 1 1 9 1 15 . . 2 6 9 6 7 Terminals 73 | . 4 . 6 . 7 14 3 . 8 7 . . . 1 5 . . . 6 5 5 2 Fabricators 2 | . . . . . . . . . . 1 . . . . . . . . . 1 . . Repair Stations 8 | . 1 . . . 2 . . . . 2 . . . . 2 . . . . . . 1 Recycling Units 22 | . . . 5 . 2 . . . . 5 . . . . 4 . . 1 . 2 . 3 Scanalyzers 8 | . . . . . 4 . . . . . . . . . 2 . . 1 . . . 1 Garrison Access 6 | . . . . . 1 . . . . 1 . . . . 2 . . . . 1 1 . Total Hacks 526 | . 21 . 57 54 44 37 8 . 21 60 1 1 48 1 69 . . 8 24 28 22 22 Successful 299 | . 15 . 49 54 19 19 1 . 6 31 1 1 48 1 34 . . 2 1 12 3 2 Failed 225 | . 6 . 8 . 24 18 7 . 15 29 . . . . 35 . . 5 23 16 19 20 Catastrophic 42 | . 1 . 1 . 2 1 2 . 2 3 . . . . 4 . . 1 4 5 7 9 Database Lockouts 2 | . . . . . 1 . . . . . . . . . . . . 1 . . . . Manual 190 | . 11 . 22 . 14 15 1 . 17 28 . . . . 42 . . 3 6 15 3 13 Terminals 257 | . 15 . 17 . 14 37 8 . 21 40 . . . 1 40 . . . 24 18 16 6 Fabricators 5 | . . . . . . . . . . 3 . . . . . . . . . 2 . . Repair Stations 35 | . 6 . . . 14 . . . . 6 . . . . 8 . . . . . . 1 Recycling Units 59 | . . . 16 . 7 . . . . 7 . . . . 9 . . 3 . 6 . 11 Scanalyzers 25 | . . . . . 8 . . . . . . . . . 8 . . 5 . . . 4 Garrison Access 17 | . . . . . 1 . . . . 4 . . . . 4 . . . . 2 6 . Terminal Hacks 175 | . 5 . 26 54 3 11 1 . 1 9 1 1 48 1 5 . . . 1 5 3 . Record 115 | . 3 . 26 46 1 1 1 . . . . . 36 1 . . . . . . . . Part Schematic 5 | . 1 . . . . . . . . . . . 4 . . . . . . . . . Robot Analysis 11 | . . . . 7 . . . . . . . . 4 . . . . . . . . . Prototype ID Bank 5 | . . . . . . 1 . . . . . . 4 . . . . . . . . . Open Door 11 | . . . . . 1 6 . . . . 1 1 . . . . . . 1 1 . . Level Access Points 1 | . . . . . . . . . . . . . . . . . . . . 1 . . Branch Access Points 3 | . . . . . 1 . . . . 1 . . . . 1 . . . . . . . Emergency Access Points 1 | . . . . . . . . . . . . . . . . . . . . 1 . . Recycling Unit Index 2 | . . . . . . . . . . 1 . . . . 1 . . . . . . . Alert Level 5 | . . . . . . 1 . . . 1 . . . . 1 . . . . 1 1 . Unreport Threat 2 | . . . . . . 1 . . . . . . . . . . . . . . 1 . Locate Traps 5 | . . . . . . 1 . . 1 2 . . . . . . . . . . 1 . Disarm Traps 1 | . 1 . . . . . . . . . . . . . . . . . . . . . Security Status 3 | . . . . . . . . . . 2 . . . . . . . . . 1 . . Recall Investigation 1 | . . . . . . . . . . 1 . . . . . . . . . . . . Recall Extermination 1 | . . . . . . . . . . . . . . . 1 . . . . . . . Zone Layout 2 | . . . . . . . . . . 1 . . . . 1 . . . . . . . Proto ID Catalog 1 | . . . . 1 . . . . . . . . . . . . . . . . . . Fabricator Hacks . | . . . . . . . . . . . . . . . . . . . . . . . Repair Station Hacks 22 | . 5 . . . 8 . . . . 3 . . . . 6 . . . . . . . Scan Component 13 | . 3 . . . 5 . . . . 2 . . . . 3 . . . . . . . Repair 9 | . 2 . . . 3 . . . . 1 . . . . 3 . . . . . . . Recycling Unit Hacks 12 | . . . 6 . 2 . . . . 2 . . . . 2 . . . . . . . Report Inventory 7 | . . . 2 . 1 . . . . 2 . . . . 2 . . . . . . . Retrieve Components 5 | . . . 4 . 1 . . . . . . . . . . . . . . . . . Scanalyzer 6 | . . . . . 1 . . . . . . . . . 2 . . 1 . . . 2 Retrieve Study 6 | . . . . . 1 . . . . . . . . . 2 . . 1 . . . 2 Garrison Access Hacks 5 | . . . . . 1 . . . . 1 . . . . 2 . . . . 1 . . Seal Access 5 | . . . . . 1 . . . . 1 . . . . 2 . . . . 1 . . Unauthorized Hacks 79 | . 5 . 17 . 4 8 . . 5 16 . . . . 17 . . 1 . 6 . . Terminals 56 | . 5 . 11 . 2 8 . . 5 9 . . . . 12 . . . . 4 . . Track 13 | . . . . . 1 2 . . 4 1 . . . . 3 . . . . 2 . . Botnet 22 | . 3 . 5 . 1 2 . . 1 3 . . . . 5 . . . . 2 . . Disrupt 2 | . . . . . . 2 . . . . . . . . . . . . . . . . Skim 19 | . 2 . 6 . . 2 . . . 5 . . . . 4 . . . . . . . Fabricators 3 | . . . . . . . . . . 2 . . . . . . . . . 1 . . Report 1 | . . . . . . . . . . 1 . . . . . . . . . . . . Liberate 2 | . . . . . . . . . . 1 . . . . . . . . . 1 . . Repair Stations . | . . . . . . . . . . . . . . . . . . . . . . . Recycling Units 20 | . . . 6 . 2 . . . . 5 . . . . 5 . . 1 . 1 . . Reject 4 | . . . 2 . 1 . . . . 1 . . . . . . . . . . . . Recyclers 2 | . . . 1 . . . . . . . . . . . 1 . . . . . . . Mask 3 | . . . 2 . 1 . . . . . . . . . . . . . . . . . Tunnel 1 | . . . 1 . . . . . . . . . . . . . . . . . . . Fedlink 10 | . . . . . . . . . . 4 . . . . 4 . . 1 . 1 . . Scanalyzers . | . . . . . . . . . . . . . . . . . . . . . . . Garrison Access . | . . . . . . . . . . . . . . . . . . . . . . . Data Cores Recovered 2 | . . . . . 1 . . . 1 . . . . . . . . . . . . . Used . | . . . . . . . . . . . . . . . . . . . . . . . Hacking Detections 89 | . 5 . 9 . 13 10 3 . 8 9 . . . . 7 . . 2 5 5 6 7 Full Trace Events 8 | . . . 1 . 1 . 1 . 1 . . . . . . . . . . . 1 3 Feedback Events . | . . . . . . . . . . . . . . . . . . . . . . . Feedback Blocked . | . . . . . . . . . . . . . . . . . . . . . . . Robot Schematics Acquired 1 | . . . . . . . . . . . . . . . . . . . . . 1 . Robots Built . | . . . . . . . . . . . . . . . . . . . . . . . Authchips . | . . . . . . . . . . . . . . . . . . . . . . . Time . | . . . . . . . . . . . . . . . . . . . . . . . Total Robot Build Rating . | . . . . . . . . . . . . . . . . . . . . . . . Part Schematics Acquired 10 | . 1 . . . . . . . . . . . 4 . . . . . 2 . 3 . Parts Built . | . . . . . . . . . . . . . . . . . . . . . . . Authchips . | . . . . . . . . . . . . . . . . . . . . . . . Time . | . . . . . . . . . . . . . . . . . . . . . . . Total Part Build Rating . | . . . . . . . . . . . . . . . . . . . . . . . Part Studies Acquired 6 | . . . . . 1 . . . . . . . . . 2 . . 1 . . . 2 Parts Repaired 9 | . 2 . . . 3 . . . . 1 . . . . 3 . . . . . . . Time 506 | . 52 . . . 170 . . . . 108 . . . . 176 . . . . . . . Parts Recycled . | . . . . . . . . . . . . . . . . . . . . . . . Recycled Matter . | . . . . . . . . . . . . . . . . . . . . . . . Retrieved Matter . | . . . . . . . . . . . . . . . . . . . . . . . Retrieved Components 18 | . . . 18 . . . . . . . . . . . . . . . . . . . Parts Scanalyzed . | . . . . . . . . . . . . . . . . . . . . . . . Part Schematics Acquired . | . . . . . . . . . . . . . . . . . . . . . . . Parts Damaged . | . . . . . . . . . . . . . . . . . . . . . . . Bothacking | -11 -10 -10 -8 -8 -6 -6 -6 -6 -6 -5 -5 -5 -5 -4 -4 -4 -4 -3 -3 -2 -2 -2 ------------ Run | Yrd Mat Sub Rec Scr Fac Ext Cet Arc Hub Fac Upp Upp Zhi Pro Fac Upp Upp Res Tes Res Qua Frg Used RIF Installer . | . . . . . . . . . . . . . . . . . . . . . . . Robots Hacked . | . . . . . . . . . . . . . . . . . . . . . . . Non-combat . | . . . . . . . . . . . . . . . . . . . . . . . Combat . | . . . . . . . . . . . . . . . . . . . . . . . Robot Hacks Applied . | . . . . . . . . . . . . . . . . . . . . . . . Relay Couplers Released 2 | . . . . . . . . . . . . . . . 2 . . . . . . . Machine Destruction 2 | . . . . . . . . . . . . . . . 2 . . . . . . . Fabnet Peak Effective % . | . . . . . . . . . . . . . . . . . . . . . . . Robots Rewired 41 | . . . 33 . . 8 . . . . . . . . . . . . . . . . Allies Hacked . | . . . . . . . . . . . . . . . . . . . . . . . Hacks Repelled . | . . . . . . . . . . . . . . . . . . . . . . . Allies | -11 -10 -10 -8 -8 -6 -6 -6 -6 -6 -5 -5 -5 -5 -4 -4 -4 -4 -3 -3 -2 -2 -2 -------- Run | Yrd Mat Sub Rec Scr Fac Ext Cet Arc Hub Fac Upp Upp Zhi Pro Fac Upp Upp Res Tes Res Qua Frg Total Allies 54 | . . . 33 . . 16 5 . . . . . . . . . . . . . . . Largest Group 33 | . . . 33 29 22 10 14 11 . . . . . . . . . . . . . . Highest-Rated Group 869 | . . . 510 462 337 431 869 589 . . . . . . . . . . . . . . Highest-Rated Ally 159 | . . . 34 34 34 159 159 96 . . . . . . . . . . . . . . Total Orders 83 | . . . 36 17 16 4 1 . . 3 . . . . . 4 2 . . . . . STAY 33 | . . . 18 5 7 2 1 . . . . . . . . . . . . . . . ROAM 1 | . . . . . . . . . . . . . . . . 1 . . . . . . FOLLOW 28 | . . . 15 7 4 2 . . . . . . . . . . . . . . . . GUARD 1 | . . . 1 . . . . . . . . . . . . . . . . . . . DROP 4 | . . . . 2 2 . . . . . . . . . . . . . . . . . PICKUP 6 | . . . . 3 3 . . . . . . . . . . . . . . . . . COLLECT 2 | . . . 2 . . . . . . . . . . . . . . . . . . . EXPLORE 6 | . . . . . . . . . . 3 . . . . . 2 1 . . . . . RETURN 2 | . . . . . . . . . . . . . . . . 1 1 . . . . . Ally Attacks 268 | . . . 22 . 47 72 75 52 . . . . . . . . . . . . . . Total Damage 8381 | . . . 379 . 1786 1962 2005 2249 . . . . . . . . . . . . . . Kills 61 | . . . 6 . 15 16 9 15 . . . . . . . . . . . . . . Allies Corrupted . | . . . . . . . . . . . . . . . . . . . . . . . Allies Melted 1 | . . . . . . . . 1 . . . . . . . . . . . . . . Intel | -11 -10 -10 -8 -8 -6 -6 -6 -6 -6 -5 -5 -5 -5 -4 -4 -4 -4 -3 -3 -2 -2 -2 ------- Run | Yrd Mat Sub Rec Scr Fac Ext Cet Arc Hub Fac Upp Upp Zhi Pro Fac Upp Upp Res Tes Res Qua Frg Active Infowar (turns) 20706 | 24 851 311 . . 1884 1722 34 . 1022 2818 674 675 691 973 1977 558 85 1181 770 1630 1574 1252 Optics 10665 | . 814 12 . . . . . . . . . . . 963 1977 558 85 1181 770 1630 1570 1105 Sensors 8528 | . . . . . 1585 1711 34 . 1003 2566 . . . . 208 . . 1181 240 . . . IFF 1081 | . . . . . . . . . . . . . . . . . . . . . 1081 . Terrain 5670 | . . . . . 997 . . . 624 . . . . . . . . 807 571 1223 648 800 Structural 121 | . . . . . 120 . . . . . . . . . . . . . . . . 1 Traps 2618 | . . . . . 1883 735 . . . . . . . . . . . . . . . . Seismic 1215 | 24 332 299 . . . . . . . . . . . . . . . . . 560 . . Machine Analysis 2631 | . . . . . 1884 747 . . . . . . . . . . . . . . . . Cloaking 5732 | . . . . . . . . . 3 324 674 675 691 967 302 . . . . 55 1293 748 Jamming 12429 | . . . . . . . . . 1020 2432 . . . . 1940 558 85 1177 766 1626 1574 1251 Robot Analysis Total 11 | . . . . 7 . . . . . . . . 4 . . . . . . . . . Derelict Logs Recovered 9 | . . 1 . 2 . . . . . . 2 . . 2 . 2 . . . . . . Drone Launches 6 | . . . . . . . . . . 3 . . . . . 2 1 . . . . . Drone Recoveries 5 | . . . . . . . . . . 2 . . . . . 2 1 . . . . . Exploration | -11 -10 -10 -8 -8 -6 -6 -6 -6 -6 -5 -5 -5 -5 -4 -4 -4 -4 -3 -3 -2 -2 -2 ------------- Run | Yrd Mat Sub Rec Scr Fac Ext Cet Arc Hub Fac Upp Upp Zhi Pro Fac Upp Upp Res Tes Res Qua Frg Turns Passed 32645 | 135 851 398 3553 6927 1905 2152 582 79 1099 2895 674 675 697 973 1977 558 85 1181 770 1630 1574 1275 Spaces Moved 20383 | 90 403 246 2561 5625 1356 1365 332 71 769 1259 294 382 314 488 1287 253 64 904 458 679 611 572 Core 60 | 15 . . . . . . . . . . . . . . . . . . . . . 45 Treads 5210 | . 355 170 145 . . . . . 46 1259 294 382 314 488 85 . . . 104 679 544 345 Legs 123 | 75 48 . . . . . . . . . . . . . . . . . . . . . Wheels 14990 | . . 76 2416 5625 1356 1365 332 71 723 . . . . . 1202 253 64 904 354 . 67 182 Hover . | . . . . . . . . . . . . . . . . . . . . . . . Flight . | . . . . . . . . . . . . . . . . . . . . . . . Fastest Speed 50 | 50 120 80 90 90 95 98 98 100 100 160 163 163 163 163 105 120 120 105 105 160 160 50 Average Speed 121 | 108 155 139 94 108 103 102 102 100 105 160 217 163 163 163 117 120 120 108 122 160 194 159 Slowest Speed 330 | 120 160 160 165 120 120 130 200 100 240 243 245 163 163 163 163 120 120 120 160 160 330 240 Overloaded Moves . | . . . . . . . . . . . . . . . . . . . . . . . Propulsion Burnouts . | . . . . . . . . . . . . . . . . . . . . . . . Robots Hopped . | . . . . . . . . . . . . . . . . . . . . . . . Potential Cave-ins 16 | . . . . . . . . . . 2 . . . . . . . . . . . 14 Cave-ins Triggered 3 | . . . . . . . . . . . . . . . . . . . . . . 3 Teleports 5 | . . . . . . . . . . . . . . . . . . . . . 3 2 Exploration Rate (%) 51 | 5 52 13 99 96 26 86 79 71 61 37 48 55 62 61 23 95 14 19 53 24 65 33 Regions Visited 22 Branch Regions 16 Pre-discovered Areas 9 | . . . 3 2 . . . . . 1 . . 3 . . . . . . . . . Known Exits Taken 8 | . . . . . 1 . . . . 1 1 1 1 . 1 . . 1 1 . . . Unknown Exits Taken 14 | 1 1 1 1 1 . 1 1 1 1 . . . . 1 . 1 1 . . 1 1 . Scrap Searched 11 | . . . . 6 . . . . . . 1 1 . . . 2 1 . . . . . Spaces Dug 320 | . . . 1 . 16 8 . . 15 34 3 21 . 12 25 17 . 14 11 44 28 71 Terrain Destroyed 1096 | . 5 16 1 . 26 11 10 . 342 116 9 23 . 62 99 17 . 14 47 101 108 89 Melee 37 | . . . 1 . 12 8 . . 15 1 . . . . . . . . . . . . Projectile 381 | . . . . . 14 3 10 . 6 66 9 23 . 62 42 17 . 14 11 31 31 42 AOE 677 | . 5 16 . . . . . . 321 49 . . . . 57 . . . 36 69 77 47 Terrain Rammed . | . . . . . . . . . . . . . . . . . . . . . . . Walls Destroyed . | . . . . . . . . . . . . . . . . . . . . . . . Machines Disabled . | . . . . . . . . . . . . . . . . . . . . . . . Actions | -11 -10 -10 -8 -8 -6 -6 -6 -6 -6 -5 -5 -5 -5 -4 -4 -4 -4 -3 -3 -2 -2 -2 --------- Run | Yrd Mat Sub Rec Scr Fac Ext Cet Arc Hub Fac Upp Upp Zhi Pro Fac Upp Upp Res Tes Res Qua Frg Total 26748 | 110 580 273 3653 6581 1728 1945 498 74 974 1928 315 407 402 581 1667 491 72 1073 616 1037 900 843 Wait 3444 | 2 135 3 674 359 244 352 71 2 126 471 . 1 2 22 212 217 9 90 63 128 147 114 Move 20358 | 89 402 245 2560 5624 1355 1364 331 70 768 1258 293 381 313 487 1286 252 63 903 457 678 610 569 Hop . | . . . . . . . . . . . . . . . . . . . . . . . Pick Up 490 | 5 4 3 39 297 18 12 12 . 2 15 5 . 7 1 18 1 . 14 9 10 12 6 Fast Attach 98 | 7 4 2 4 3 6 4 8 . 1 9 1 . 6 3 11 . . 4 11 7 4 3 Attach 126 | . . 2 4 1 10 7 5 . 7 14 4 1 4 9 12 1 . 6 6 5 13 15 Detach 60 | . . . 2 4 . . 5 . 6 5 . . 5 4 8 1 . 1 3 1 7 8 Swap 234 | . 6 2 7 2 9 15 10 . 16 25 . . 4 4 13 1 . 13 13 45 28 21 Drop 490 | . 5 2 36 291 13 8 18 . 3 14 3 . 11 3 22 1 . 15 19 15 8 3 Fire 939 | 7 24 14 11 . 34 93 30 2 29 114 9 24 49 45 65 17 . 27 35 139 70 101 Melee 42 | . . . 1 . 14 8 . . 16 3 . . . . . . . . . . . . Ram 1 | . . . . . . 1 . . . . . . . . . . . . . . . . Kick . | . . . . . . . . . . . . . . . . . . . . . . . Crush 9 | . . . . . . . . . . . . . . . . . . . . 9 . . Escape Stasis 24 | . . . . . . . . . . . . . . . 20 . . . . . 1 3 Rewire 373 | . . . 292 . . 81 . . . . . . . . . . . . . . . . Trap 3 | . . . . . . . . . . . . . . 3 . . . . . . . . Miscellaneous 57 | . . . 23 . 25 . 8 . . . . . 1 . . . . . . . . . Route ------- -11/Scrapyard -10/Materials (discovered 3 exits: [*Min x2] / [*Sub]) -10/Subcaves -8/Recycling (discovered 2 exits: *Fac / *Scr) -8/Scraptown (discovered 2 exits: *Fac x2) -6/Factory (discovered 5 exits: *Fac / Low x2 / *Ext x2) -6/Extension (discovered 2 exits: *Fac / *Cet) -6/Cetus (discovered 2 exits: *Fac / *Arc) -6/Archives -6/Hub_04(d) -5/Factory (discovered 3 exits: *Fac / *Upp x2) -5/Upper Caves -5/Upper Caves -5/Zhirov -4/Proximity Caves -4/Factory (discovered 3 exits: *Res / *Upp x2) -4/Upper Caves -4/Upper Caves -3/Research (discovered 3 exits: Res x2 / *Tes) -3/Testing -2/Research (discovered 4 exits: *Acc x3 / *Qua) -2/Quarantine (discovered 3 exits: *Acc / [*Sec] / *Frg) -2/Protoforge History --------- Turn | Location | Event 2 | -11/Scrapyard | Met Revision 17 66 | -11/Scrapyard | Discovered new exit (range 8) 136 | -11/Scrapyard | Entered Materials 220 | -10/Materials | Discovered new exit (range 10) 305 | -10/Materials | Build established: Mutant 346 | -10/Materials | Discovered new exit (range 6) 592 | -10/Materials | Discovered new exit (range 17) 787 | -10/Materials | Repaired Lgt. Cannon 814 | -10/Materials | Repaired Lgt. Treads 987 | -10/Materials | Entered Subcaves 995 | -10/Subcaves | Learned location of 1 exit from Materials 1251 | -10/Subcaves | Discovered new exit (range 11) 1283 | -10/Subcaves | A swath of the cavern ceiling suddenly collapsed 1290 | -10/Subcaves | Ambushed by swarm of Subdwellers 1297 | -10/Subcaves | Ambushed by Subdwellers from Twisted Machinery 1302 | -10/Subcaves | Core integrity fell below 50% 1304 | -10/Subcaves | Core integrity fell below 20% 1345 | -10/Subcaves | Lost 8 parts (1p3n1u3w) 1385 | -10/Subcaves | Entered Recycling 1386 | -8/Recycling | Met a Zionite searching for Scraptown 1817 | -8/Recycling | Build established: Scavenger-Mutant 2178 | -8/Recycling | Build established: Commander-Mutant 3174 | -8/Recycling | Discovered new exit (range 15) 3182 | -8/Recycling | Learned 2 Lower Caves zone layouts 3249 | -8/Recycling | Learned Storage emergency access door positions 3267 | -8/Recycling | Learned Factory security intel 3274 | -8/Recycling | Loaded intel: 5 recycling unit locations 3281 | -8/Recycling | Learned location of Zion (-7) 3300 | -8/Recycling | Learned 12 Factory zone layouts 3331 | -8/Recycling | Learned location of 1 exit from Storage 3348 | -8/Recycling | Scanned before Scraplab entrance 3361 | -8/Recycling | Entered Scraplab 3374 | -8/Recycling | Discovered new exit (range 3) 4938 | -8/Recycling | Entered Scraptown 4938 | -8/Scraptown | Accompanied by 29 allies 5057 | -8/Scraptown | Visited Shadow of the Wyrm 5081 | -8/Scraptown | Visited Red Mages 5134 | -8/Scraptown | Learned location of Extension (-6) 5176 | -8/Scraptown | Received an X-ray algorithm 5359 | -8/Scraptown | Visited Symbiants 5386 | -8/Scraptown | Visited Science Testing Area 5393 | -8/Scraptown | Heard Great Nut preacher, LISTEN AND RECITE! 5399 | -8/Scraptown | Visited TADAMA 5431 | -8/Scraptown | Visited Fellowship of the Rings 5464 | -8/Scraptown | Visited Junk Repository 5744 | -8/Scraptown | Discovered new exit (range 7) 5954 | -8/Scraptown | Scanned Subdweller tech in exchange for log data 5957 | -8/Scraptown | Learned Research garrison access intel 5958 | -8/Scraptown | Learned location of Quarantine (-2) 6010 | -8/Scraptown | Visited UFD Registry 6010 | -8/Scraptown | Registered with UFD as "Megatorch" 6050 | -8/Scraptown | Visited Scrap Suit Storage 6087 | -8/Scraptown | Visited Observation Area 6135 | -8/Scraptown | Visited DA-N13 Charitable Foundation 6140 | -8/Scraptown | Found DCF Scrap (31 items) 6164 | -8/Scraptown | Visited Modified Component R&D 6226 | -8/Scraptown | Visited Junk Repository 6251 | -8/Scraptown | Visited Analyses Database 6302 | -8/Scraptown | Visited Infowarlord's Domain 6341 | -8/Scraptown | Delivered Scrap Shield to a Scientist 6437 | -8/Scraptown | Visited Science Guys 6472 | -8/Scraptown | Visited Research Penetration Think Tank 6497 | -8/Scraptown | Visited Chapter 10 6615 | -8/Scraptown | Discovered new exit (range 5) 8263 | -8/Scraptown | Found Scrap Suit 8266 | -8/Scraptown | Found Scrap Suit 8269 | -8/Scraptown | Found Scrap Suit 10459 | -8/Scraptown | Found Exp. Terrain Scan Processor 11783 | -8/Scraptown | Met Optimus 11783 | -8/Scraptown | Accepted into 0bPrime 11865 | -8/Scraptown | Entered Factory 11865 | -6/Factory | Accompanied by 22 allies 11865 | -6/Factory | Evolved 8 slots: Power x1, Propulsion x1, Utility x5, Weapon x1 11995 | -6/Factory | Lost 4 allies 12290 | -6/Factory | Repaired Broken Magnetic Acceleration Cannon? 12360 | -6/Factory | Build established: Commander-Assassin 12473 | -6/Factory | Lost 5 allies 12583 | -6/Factory | Lost 3 allies 12759 | -6/Factory | Lost 5 allies 12950 | -6/Factory | Lost 5 parts (1p1n1u2w) 13138 | -6/Factory | Repaired Lyr. Medium Armor Plating 13190 | -6/Factory | Repaired Magnetic Acceleration Cannon 13222 | -6/Factory | Discovered new exit (range 11) 13254 | -6/Factory | Identified exit to Lower Caves 13254 | -6/Factory | Identified exit to Extension 13442 | -6/Factory | Build established: Derelict-Mutant 13505 | -6/Factory | Central database locked down 13770 | -6/Factory | Entered Extension 13972 | -6/Extension | Build established: Mutant 14170 | -6/Extension | Disrupted transfer network 14818 | -6/Extension | Rescued a captive Derelict 14819 | -6/Extension | Rescued a captive Derelict 14829 | -6/Extension | Rescued a captive Derelict 14894 | -6/Extension | Rescued A7 14899 | -6/Extension | Build established: Scavenger-Gunner 15187 | -6/Extension | Spotted B-75 Beast 15202 | -6/Extension | Destroyed B-75 Beast 15205 | -6/Extension | Spotted B-75 Beast 15247 | -6/Extension | Allies destroyed B-75 Beast 15249 | -6/Extension | Lost 5 allies 15260 | -6/Extension | Lost 3 parts (1n1u1w) 15398 | -6/Extension | Rescued a captive Derelict 15399 | -6/Extension | Rescued a captive Derelict 15519 | -6/Extension | Build established: Scavenger-Tank 15610 | -6/Extension | Rescued a captive Derelict 15830 | -6/Extension | Rescued a captive Derelict 15870 | -6/Extension | Discovered new exit (range 10) 15871 | -6/Extension | Discovered new exit (range 6) 15922 | -6/Extension | Entered Cetus 15922 | -6/Cetus | Accompanied by 10 allies (A7) 15927 | -6/Cetus | Acquired a Cetus Manufacturing Module code from A7 15934 | -6/Cetus | Spotted Cetus Guard 15934 | -6/Cetus | Spotted Cetus Guard 15937 | -6/Cetus | Spotted Cetus Guard 15937 | -6/Cetus | Spotted Cetus Guard 15938 | -6/Cetus | Attached CPS modules to Cetus Guard. 15941 | -6/Cetus | Attached CPS modules to Cetus Guard. 15949 | -6/Cetus | Destroyed Cetus Guard 15959 | -6/Cetus | Allies destroyed Cetus Guard 15968 | -6/Cetus | Destroyed Cetus Guard 15969 | -6/Cetus | Allies destroyed Cetus Guard 16071 | -6/Cetus | Started Cetus Manufacturing Module 16096 | -6/Cetus | Manufactured an Enhanced Grunt 16118 | -6/Cetus | Escorted A7 to Cetus Mainframe 16121 | -6/Cetus | Manufactured an Enhanced Grunt 16146 | -6/Cetus | Manufactured an Enhanced Grunt 16171 | -6/Cetus | Manufactured an Enhanced Grunt 16196 | -6/Cetus | Manufactured an Enhanced Grunt 16214 | -6/Cetus | Discovered new exit (range 15) 16237 | -6/Cetus | Spotted Cetus Guard 16237 | -6/Cetus | Spotted Cetus Guard 16237 | -6/Cetus | Destroyed Cetus Guard 16240 | -6/Cetus | Spotted Cetus Guard 16240 | -6/Cetus | Spotted Cetus Guard 16254 | -6/Cetus | Allies destroyed Cetus Guard 16256 | -6/Cetus | Allies destroyed Cetus Guard 16258 | -6/Cetus | Destroyed Cetus Guard 16274 | -6/Cetus | Discovered new exit (range 16) 16287 | -6/Cetus | Met Revision 17 16415 | -6/Cetus | Build established: Commander-Scrapper 16485 | -6/Cetus | Murdered A7 16489 | -6/Cetus | Extracted ID and sensor layout for unrecognized location from A7's data core 16504 | -6/Cetus | Entered Archives 16504 | -6/Archives | Accompanied by 11 allies 16516 | -6/Archives | Met Zhirov 16521 | -6/Archives | Unable to access archive contents 16522 | -6/Archives | Reinforcements dispatched to Archives 16532 | -6/Archives | Discovered new exit (range 15) 16567 | -6/Archives | Reinforcements dispatched to Archives 16569 | -6/Archives | Zhirov warped through subspace 16583 | -6/Archives | Entered Hub_04(d) 16612 | -6/Hub_04(d) | Lost 6 allies 16711 | -6/Hub_04(d) | Discovered new exit (range 4) 16753 | -6/Hub_04(d) | Found Prototype Processor 16753 | -6/Hub_04(d) | Identified Exp. Targeting Computer 16844 | -6/Hub_04(d) | Build established: Scavenger-Scrapper 17086 | -6/Hub_04(d) | Spotted B-75 Beast 17485 | -6/Hub_04(d) | Destroyed 8 combat bots 17557 | -6/Hub_04(d) | Network Hub disabled 17633 | -6/Hub_04(d) | First assault squad dispatched 17637 | -6/Hub_04(d) | Network Hub disabled 17682 | -6/Hub_04(d) | Entered Factory 17682 | -5/Factory | Evolved 2 slots: Propulsion x1, Utility x1 18035 | -5/Factory | Identified exit to Upper Caves 18089 | -5/Factory | Discovered new exit (range 10) 18340 | -5/Factory | Build established: Scavenger-Mutant 18738 | -5/Factory | Repaired Centrium Medium Armor Plating 19041 | -5/Factory | Build established: Scavenger-Tank 19264 | -5/Factory | Loaded intel: 8 recycling unit locations 19656 | -5/Factory | Learned location of Protoforge (-2) 19782 | -5/Factory | First assault squad dispatched 19877 | -5/Factory | Cargo convoy interrupted 20577 | -5/Factory | Entered Upper Caves 20579 | -5/Upper Caves | UFD Scientist delivered a prototype 20582 | -5/Upper Caves | Found Prototype Protection 20584 | -5/Upper Caves | Identified Enh. Scrap Shield 20602 | -5/Upper Caves | Lost 4 parts (1n2u1w) 20616 | -5/Upper Caves | Identified exit to Upper Caves 20822 | -5/Upper Caves | Build established: Scavenger-Mutant 21160 | -5/Upper Caves | Learned Factory garrison access intel 21251 | -5/Upper Caves | Entered another Upper Caves area 21252 | -5/Upper Caves | Encountered a Warlord checkpoint 21888 | -5/Upper Caves | Discovered new exit (range 15) 21922 | -5/Upper Caves | Identified exit to Zhirov 21926 | -5/Upper Caves | Entered Zhirov 21929 | -5/Zhirov | Discovered new exit (range 3) 21936 | -5/Zhirov | Identified exit to Proximity Caves 21991 | -5/Zhirov | Learned location of Command (-1) 22055 | -5/Zhirov | Found Alien Artifact 22055 | -5/Zhirov | Identified Integrated Dissipator 22055 | -5/Zhirov | Installed Integrated Dissipator, increased core heat dissipation (+20) 22218 | -5/Zhirov | Build established: Mutant 22494 | -5/Zhirov | Found Alien Artifact 22623 | -5/Zhirov | Entered Proximity Caves 22626 | -4/Proximity Caves | Spotter reported a threat 22765 | -4/Proximity Caves | Learned 8 Research zone layouts 22894 | -4/Proximity Caves | Build established: Scavenger-Tank 22906 | -4/Proximity Caves | Learned Research non-interactive machine intel 23570 | -4/Proximity Caves | Discovered new exit (range 5) 23596 | -4/Proximity Caves | Entered Factory 23596 | -4/Factory | Evolved 2 slots: Utility x2 23597 | -4/Factory | Loaded intel: 3 garrison access locations 23660 | -4/Factory | Spotted B-86 Titan 24026 | -4/Factory | Loaded intel: 8 recycling unit locations 24218 | -4/Factory | Repaired Broken Centrium Heavy Treads 24275 | -4/Factory | Repaired Centrium Heavy Treads 24408 | -4/Factory | Discovered new exit (range 14) 24477 | -4/Factory | Identified exit to Upper Caves 24738 | -4/Factory | Discovered new exit (range 15) 25205 | -4/Factory | Build established: Gunner 25551 | -4/Factory | Repaired Centrium Medium Armor Plating 25573 | -4/Factory | Entered Upper Caves 25592 | -4/Upper Caves | Encountered a Warlord checkpoint 25803 | -4/Upper Caves | Learned Research emergency access door positions 25889 | -4/Upper Caves | Learned 4 Research zone layouts 26083 | -4/Upper Caves | Discovered new exit (range 11) 26131 | -4/Upper Caves | Entered another Upper Caves area 26164 | -4/Upper Caves | Acquired the password to a Derelict Tinkerer's latest research 26197 | -4/Upper Caves | Discovered new exit (range 3) 26216 | -4/Upper Caves | Entered Research 26216 | -3/Research | Evolved 2 slots: Utility x2 26217 | -3/Research | Identified exit to Research 26219 | -3/Research | Loaded intel: 68 non-interactive machine locations 26220 | -3/Research | Loaded intel: 4 garrison access locations 26416 | -3/Research | Revision forces began assault on 0b10 26422 | -3/Research | Loaded intel: 4 recycling unit locations 26522 | -3/Research | Build established: Tank 26851 | -3/Research | Build established: Skirmisher 26916 | -3/Research | Research terminal network offline 26926 | -3/Research | Discovered new exit (range 9) 26975 | -3/Research | Found Fusion Bomb Launcher 27016 | -3/Research | Identified exit to Testing 27107 | -3/Research | Central database locked down 27281 | -3/Research | Spotted Striker 27284 | -3/Research | Spotted Striker 27397 | -3/Research | Entered Testing 27753 | -3/Testing | Found Prototype Launcher 27792 | -3/Testing | Found Prototype Protection 27792 | -3/Testing | Identified SHELL Armor 27807 | -3/Testing | Found Prototype Protection 27838 | -3/Testing | Discovered exit to Research (range 17) 27902 | -3/Testing | Identified Z-bomb Delivery System 27954 | -3/Testing | Found Prototype Energy Cannon 28009 | -3/Testing | Found Prototype Device 28009 | -3/Testing | Identified Thermal Barrier 28014 | -3/Testing | Identified Hvy. Regenerative Plating 28125 | -3/Testing | Found Prototype Device 28125 | -3/Testing | Identified Exp. Hardlight Generator 28131 | -3/Testing | Identified Potential Cannon 28167 | -3/Testing | Entered Research 28167 | -2/Research | Evolved 2 slots: Power x1, Utility x1 28403 | -2/Research | Identified exit to Access 28418 | -2/Research | Build established: Scavenger-Tank 28481 | -2/Research | Loaded intel: 5 recycling unit locations 28633 | -2/Research | Spotted B-90 Cyclops 28917 | -2/Research | First assault squad dispatched 29601 | -2/Research | Found Fusion Bomb Launcher 29647 | -2/Research | Discovered new exit (range 18) 29760 | -2/Research | Destroyed 7 combat bots 29797 | -2/Research | Entered Quarantine 29850 | -2/Quarantine | Found Alien Artifact 30047 | -2/Quarantine | First assault squad dispatched 30047 | -2/Quarantine | Scanned by Researcher 30081 | -2/Quarantine | Found Alien Artifact 30086 | -2/Quarantine | Found Alien Artifact 30093 | -2/Quarantine | Found Alien Artifact 30095 | -2/Quarantine | Found Alien Artifact 30096 | -2/Quarantine | Build established: Infiltrator-Tank 30098 | -2/Quarantine | Found Alien Artifact 30434 | -2/Quarantine | Discovered exit to Access (range 18) 30472 | -2/Quarantine | Identified Transdimensional Reconstructor (x5) 30472 | -2/Quarantine | Warped through subspace 30501 | -2/Quarantine | Warped through subspace 30795 | -2/Quarantine | Warped through subspace 30813 | -2/Quarantine | System corruption reached 10% 31028 | -2/Quarantine | Build established: Infiltrator-Mutant 31240 | -2/Quarantine | Spotted Fortress 31363 | -2/Quarantine | Discovered new exit (range 6) 31363 | -2/Quarantine | Discovered new exit (range 6) 31371 | -2/Quarantine | Entered Protoforge 31549 | -2/Protoforge | Spotted Hotshot 31549 | -2/Protoforge | Spotted Hotshot 31565 | -2/Protoforge | Destroyed Hotshot 31569 | -2/Protoforge | Destroyed Hotshot 31574 | -2/Protoforge | Superfortress began startup sequence 31719 | -2/Protoforge | Spotted Hotshot 31719 | -2/Protoforge | Spotted Hotshot 31738 | -2/Protoforge | Destroyed Hotshot 31746 | -2/Protoforge | Destroyed Hotshot 31918 | -2/Protoforge | Spotted Hotshot 31918 | -2/Protoforge | Spotted Hotshot 31931 | -2/Protoforge | Destroyed Hotshot 31973 | -2/Protoforge | Destroyed Hotshot 32108 | -2/Protoforge | Spotted AP7-3 32139 | -2/Protoforge | Spotted AP7-3 32156 | -2/Protoforge | Warped through subspace 32371 | -2/Protoforge | First assault squad dispatched 32476 | -2/Protoforge | Crushed by falling debris 32495 | -2/Protoforge | Core integrity fell below 50% 32497 | -2/Protoforge | Crushed by falling debris 32498 | -2/Protoforge | System corruption reached 30% 32501 | -2/Protoforge | Crushed by falling debris 32508 | -2/Protoforge | Spotted EXE-6 32508 | -2/Protoforge | Spotted EXE-6 32525 | -2/Protoforge | Warped through subspace 32532 | -2/Protoforge | Lost 9 parts (1p2n6u) 32615 | -2/Protoforge | Spotted EXE-6 32618 | -2/Protoforge | Spotted EXE-6 32623 | -2/Protoforge | Released all parts (7) 32630 | -2/Protoforge | Spotted Decapitator 32630 | -2/Protoforge | Spotted Decapitator 32634 | -2/Protoforge | Core integrity fell below 20% 32646 | -2/Protoforge | Self-destructed Last Messages --------------- 32627_ N-04 Retriever collects Fusion Bomb Launcher. 32628_ N-04 Retriever collects Imp. Transmission Jammer. 32628_ N-04 Retriever collects Adv. Terrain Scanner. 32632_ System corrupted: Matter fused (-7). 32633_ Penetrated by Slug. 32641_ Connecting with Recycling Unit... 32641_ ALERT: Suspicious activity at Recycling Unit F003. Dispatching Investigation squad. 32643_ Connecting with Recycling Unit... 32643_ ALERT: Suspicious activity at Recycling Unit F002. Dispatching Investigation squad. 32646_ Connecting with Recycling Unit... 32646_ ALERT: Suspicious activity at Recycling Unit F001. Dispatching Investigation squad. [Achievement: 5k Club] [Achievement: 10k Club] [Achievement: 20k Club] Map ----- +----------------------------------------------------+ | ???"""""""""""""""""" " " " """ #??????? | | ???""""""""""""""""" "" " " "" ??#?????? | | ?? """"""""""""""" "" "" " "" ?? ???????? | | ?? """"""""" "" "" ???#??????? | | ?? "" "" "" """ "??????????? | | ?? """"" " "" "" "" ""??????????? | | ??? " " " " """?????????? | | ?? " """" """" " "" """ ""????????? | | "?" """ "" """""""""" "" ????????? | | "?? """" """ " ???????? | | ?? " ??"" " """ " "" """" ???????? | | " ?? ???" " "" "" " "" ???????? | | ?? ??" """" " "" "" "" #??????? | | """"????"" """ " " " ""? #??????? | | " ??? " """" "" " #??????? | | ?? " " #??????? | | ?? """""""""" """ #??????? | | ""??????"" """ #??????? | | " ?????????""""""""" " " " """""""???????? | | ##?????????????##############+++######???????????? | | ????????????????????????#"" ""#????????????? | | ??????????????????????###" "###??????????? | | ??????????????????????#"" ""#??????????? | | ??????????????????????#"" ""#??????????? | | ??????????????????????#"" ""#??????????? | | ??????????????????????#"Y@ Y"#??????????? | | ??????????????????????#"" ""#??????????? | | ??????????????????????#"" ""#??????????? | | ??????????????????????#"" ""#??????????? | | ??????????????????????###" "###??????????? | | ????????????????????????#"" ""#????????????? | | ????????????????????????###"""Y"""###????????????? | | ??????????????????????????#"""""""#??????????????? | | ??????????????????????????#########??????????????? | | ?????????????????????????????????????????????????? | | ?????????????????????????????????????????????????? | | ?????????????????????????????????????????????????? | | ?????????????????????????????????????????????????? | | ?????????????????????????????????????????????????? | | ?????????????????????????????????????????????????? | | ?????????????????????????????????????????????????? | | ?????????????????????????????????????????????????? | | ?????????????????????????????????????????????????? | | ?????????????????????????????????????????????????? | | ?????????????????????????????????????????????????? | | ?????????????????????????????????????????????????? | | ?????????????????????????????????????????????????? | | ?????????????????????????????????????????????????? | | ?????????????????????????????????????????????????? | | ?????????????????????????????????????????????????? | +----------------------------------------------------+ Best States ------------- Heat Dissipation 118 Coolant Potential 120 Energy Generation 65 Energy Capacity 1450 Matter Stores 300 Matter Capacity 300 Sight Range 22 Robot Scan Range 16 Terrain Scan Range 20 Terrain Scan Density 1010 Jamming Range 14 Cloak Strength 4 Corruption Containment 8 Corruption Block 20 Armor Coverage 1800 Resistance: TH 50 Resistance: EM 15 Core Shielding 40 Weapon Shielding 90 Weapon Cycling 25 Melee Speed Boost 30 Evasion (%) 55 Targeting Accuracy 13 Recoil Reduction 4 Offensive Hacking 12 Defensive Hacking 14 Item Schematics ----------------- Hcp. Storage Unit | -10/Materials | Hacked Assault Drone Bay | -5/Zhirov | Free Exp. Heat Sink | -5/Zhirov | Free Exp. Optical Array | -5/Zhirov | Free Imp. Arc Thrower | -5/Zhirov | Free Hellfire Missile Launcher | -3/Testing | Archive Coolant Network | -3/Testing | Archive Exp. Q-thruster | -2/Quarantine | Archive Cld. Plasma Rifle | -2/Quarantine | Archive Cld. Proton Cannon | -2/Quarantine | Archive Robot Schematics ------------------ B-74 Champion | -2/Quarantine | Archive Fabricated ------------ Nothing Repaired ---------- Lgt. Cannon | 48% | -10/Materials Lgt. Treads | 60% | -10/Materials Magnetic Acceleration Cannon | 53% | -6/Factory | Broken Lyr. Medium Armor Plating | 29% | -6/Factory Magnetic Acceleration Cannon | 48% | -6/Factory Centrium Medium Armor Plating | 18% | -5/Factory Centrium Heavy Treads | 33% | -4/Factory | Broken Centrium Heavy Treads | 3% | -4/Factory Centrium Medium Armor Plating | 56% | -4/Factory Studied --------- Com. Wheel | -6/Factory | Hacked Arm. Huge Wheel | -4/Factory | Hacked Lrn. Proton Cannon | -4/Factory | Hacked Nova Cannon | -3/Research | Hacked Centrium Wheel | -2/Protoforge | Hacked Enh. Nova Cannon | -2/Protoforge | Hacked Alien Tech Used ----------------- Integrated Dissipator Transdimensional Reconstructor Achievements -------------- 10k Club 20k Club 5k Club A New Friend A Problem For Future Me Alien Tech Armchair Analyst Backstab Brute Force Bumper Bots Can't Touch This Civilization 2243 Collateral Damage Construction Begets Destruction Crack Shot Dangerous Findings Everything Is Under Control Ew, Corruption Explorer Fancy Inventory For Emergencies Only GoHome() Hard Hitter Heavy Suspicion Hey, That's Mine! Hulk Smash I Have A Map? I Spy I'm Back, Baby! Immobile And Lovin' It Infodabbler Into The Breach It Was An Accident, I Swear It's Just You Item+ Jackpot Leap Before You Look Let's See Who's Tougher Librarian Link The Feds Live, Flee, And Rebuild Look Less Dangerous Next Time Loot Pinata Loot Taster Made in Tau Ceti IV Max Potential Myspace No Room For Error Nope Novice Programmer Oh No You Don't! Omniscient Cartographer One Hack Too Far Ooh, Shiny! Organ Harvest Overwhelming Part-time Excavator Part-time Mechanic Please Form A Line Power Corrupts Prison Break Project G-00 Prolific Hacker Quantum Hacking Quick And Dirty Remodeling Respectable Loadout Revising The Future Risk Taker Rockin' Loadout Serviceable Loadout Significant Disruption Spot Them First Storm Trooper Subspace Traveler Super-what Now? System Compromised Tailor-made Tank Tank Life The More The Merrier There's More Where That Came From Throw Away The Key Total Silence Tourist True Hacker Turtlemind Ultimate Loadout Uninvited Guest Unlikely Earthworm Use The Force We Are Legion We Love MA You May Approach The Wall root@ Challenges ------------ None Game ------ Seed HardlightDeliveryPurifier Manual? 0 Play Time 09:55:29 Cumulative 9.3 hours Start 2026.01.01 @ 14:30:37 End 2026.01.02 @ 19:57:16 Sessions 6 Manual Loads 0 Difficulty Rogue Special Mode None Game No. 1 Rogue 1 Adventurer 0 Explorer 0 Win Type - Total 0 Types 0/0/0/0/0/0/0/0/0/0 Lore% 14 Gallery% 10 Achievement% 20 Wizard Run 0 Options --------- Layout 1 ASCII 0 Keyboard 1 Movement Numpad Keybinds 0 Fullscreen 1 Font 24/Smallcaps Map View 50x35 Zoom Use 0% Tactical HUD 1 Map Filters NONE Filters NONE Steam 1 RUN: 8d6cd825-2220-48c0-b224-361b2ebf0b79